[Event "*** Titled Tuesday Blitz"]
[Site "Chess.com"]
[Date "2021.04.20"]
[Round "11"]
[White "lucachess49"]
[Black "MatyChess1"]
[Result "1/2-1/2"]
[WhiteElo "2447"]
[BlackElo "2619"]
[TimeControl "180+1"]
[EndTime "12:07:29 PDT"]
[Termination "Game drawn - insufficient material"]

1. d4 {[%clk 0:03:00.9]} 1... d5 {[%clk 0:02:59.9]} 2. c4 {[%clk 0:03:00.4]}
2... e6 {[%clk 0:03:00.1]} 3. Nc3 {[%clk 0:02:59.5]} 3... Bb4 {[%clk 0:02:59.9]}
4. Nf3 {[%clk 0:02:53.3]} 4... dxc4 {[%clk 0:02:59.5]} 5. e3 {[%clk 0:02:52.2]}
5... b5 {[%clk 0:02:59.8]} 6. a4 {[%clk 0:02:51.7]} 6... c6 {[%clk 0:02:59.5]}
7. Bd2 {[%clk 0:02:51.5]} 7... Bb7 {[%clk 0:02:56]} 8. b3 {[%clk 0:02:43]} 8...
a5 {[%clk 0:02:27.1]} 9. axb5 {[%clk 0:02:40.6]} 9... cxb5 {[%clk 0:02:26.5]}
10. bxc4 {[%clk 0:02:40.8]} 10... Bxc3 {[%clk 0:02:26.9]} 11. Bxc3 {[%clk
0:02:41.7]} 11... b4 {[%clk 0:02:27.8]} 12. Bb2 {[%clk 0:02:42.3]} 12... Nf6
{[%clk 0:02:27.9]} 13. Bd3 {[%clk 0:02:41.5]} 13... O-O {[%clk 0:02:28]} 14. O-O
{[%clk 0:02:41.6]} 14... Nbd7 {[%clk 0:02:28.6]} 15. Nd2 {[%clk 0:02:28]} 15...
e5 {[%clk 0:02:27.1]} 16. dxe5 {[%clk 0:02:14]} 16... Nxe5 {[%clk 0:02:20.6]}
17. Bxe5 {[%clk 0:02:10.2]} 17... Qxd3 {[%clk 0:02:20.5]} 18. Bxf6 {[%clk
0:02:07.9]} 18... gxf6 {[%clk 0:02:20.2]} 19. Nb3 {[%clk 0:01:55.1]} 19... Qxd1
{[%clk 0:01:43.7]} 20. Rfxd1 {[%clk 0:01:56]} 20... a4 {[%clk 0:01:44]} 21. Nc5
{[%clk 0:01:25.3]} 21... Bc6 {[%clk 0:01:39.5]} 22. Rdb1 {[%clk 0:01:22.8]}
22... Rfb8 {[%clk 0:01:36.7]} 23. f3 {[%clk 0:01:16.6]} 23... Kf8 {[%clk
0:01:18.7]} 24. Kf2 {[%clk 0:01:04.6]} 24... Ke7 {[%clk 0:01:05.6]} 25. Ke2
{[%clk 0:01:03.8]} 25... Kd6 {[%clk 0:01:05.6]} 26. Nd3 {[%clk 0:01:02.6]} 26...
b3 {[%clk 0:01:06.2]} 27. Ra3 {[%clk 0:01:01.3]} 27... Bd7 {[%clk 0:01:03.9]}
28. Kd2 {[%clk 0:00:59.1]} 28... Bf5 {[%clk 0:00:33.7]} 29. e4 {[%clk 0:00:59]}
29... Be6 {[%clk 0:00:34.3]} 30. Kc3 {[%clk 0:00:59.5]} 30... f5 {[%clk
0:00:35.2]} 31. e5+ {[%clk 0:00:58.3]} 31... Kc6 {[%clk 0:00:35.6]} 32. f4
{[%clk 0:00:58.8]} 32... Ra5 {[%clk 0:00:29.2]} 33. Rba1 {[%clk 0:00:53.5]}
33... Rba8 {[%clk 0:00:06.8]} 34. Nb2 {[%clk 0:00:51.4]} 34... Bd7 {[%clk
0:00:04.7]} 35. Rxa4 {[%clk 0:00:50.2]} 35... Rxa4 {[%clk 0:00:04.7]} 36. Rxa4
{[%clk 0:00:51.1]} 36... Rg8 {[%clk 0:00:05]} 37. g3 {[%clk 0:00:49.5]} 37... h5
{[%clk 0:00:05.7]} 38. Kxb3 {[%clk 0:00:43]} 38... h4 {[%clk 0:00:05.9]} 39.
Ra6+ {[%clk 0:00:42.3]} 39... Kc7 {[%clk 0:00:05.7]} 40. Ra7+ {[%clk 0:00:41.2]}
40... Kc6 {[%clk 0:00:04.2]} 41. Nd3 {[%clk 0:00:27.7]} 41... Be6 {[%clk
0:00:05.1]} 42. gxh4 {[%clk 0:00:22.6]} 42... Rg4 {[%clk 0:00:03.4]} 43. Ra6+
{[%clk 0:00:18.2]} 43... Kc7 {[%clk 0:00:03]} 44. Nc5 {[%clk 0:00:18.1]} 44...
Bc8 {[%clk 0:00:01.6]} 45. Rf6 {[%clk 0:00:15.7]} 45... Rxf4 {[%clk 0:00:02]}
46. Rxf7+ {[%clk 0:00:15.9]} 46... Kc6 {[%clk 0:00:02]} 47. Nd3 {[%clk
0:00:15.8]} 47... Rf3 {[%clk 0:00:01.9]} 48. Rf6+ {[%clk 0:00:15.5]} 48... Kc7
{[%clk 0:00:01.8]} 49. Kc3 {[%clk 0:00:15.8]} 49... Rh3 {[%clk 0:00:02.4]} 50.
Rh6 {[%clk 0:00:10.8]} 50... f4 {[%clk 0:00:02.3]} 51. Kd4 {[%clk 0:00:11.4]}
51... f3 {[%clk 0:00:02.5]} 52. Rh7+ {[%clk 0:00:11.9]} 52... Kd8 {[%clk
0:00:02.6]} 53. h5 {[%clk 0:00:12.3]} 53... Bf5 {[%clk 0:00:02.9]} 54. Rh8+
{[%clk 0:00:11.9]} 54... Ke7 {[%clk 0:00:03.8]} 55. Nf2 {[%clk 0:00:11.8]} 55...
Rxh2 {[%clk 0:00:03.6]} 56. Ke3 {[%clk 0:00:12.3]} 56... Be6 {[%clk 0:00:03.8]}
57. c5 {[%clk 0:00:12.1]} 57... Rh4 {[%clk 0:00:03.4]} 58. h6 {[%clk 0:00:12]}
58... Kf7 {[%clk 0:00:03.8]} 59. Kxf3 {[%clk 0:00:10.9]} 59... Rc4 {[%clk
0:00:04.4]} 60. Ne4 {[%clk 0:00:10.6]} 60... Bd5 {[%clk 0:00:04.9]} 61. h7
{[%clk 0:00:09.4]} 61... Bxe4+ {[%clk 0:00:04.7]} 62. Ke3 {[%clk 0:00:09]} 62...
Kg7 {[%clk 0:00:05.3]} 63. Rg8+ {[%clk 0:00:05.8]} 63... Kxh7 {[%clk 0:00:05.3]}
64. Rg4 {[%clk 0:00:06.4]} 64... Bd5 {[%clk 0:00:03.5]} 65. Rxc4 {[%clk
0:00:06.2]} 65... Bxc4 {[%clk 0:00:04.4]} 66. c6 {[%clk 0:00:06.3]} 66... Be6
{[%clk 0:00:04.4]} 67. Kd4 {[%clk 0:00:07]} 67... Kg6 {[%clk 0:00:04.8]} 68. Kc5
{[%clk 0:00:07.7]} 68... Kf5 {[%clk 0:00:05.5]} 69. Kd6 {[%clk 0:00:08.2]} 69...
Bc8 {[%clk 0:00:05.6]} 70. c7 {[%clk 0:00:07.6]} 70... Be6 {[%clk 0:00:05]} 71.
Ke7 {[%clk 0:00:04.5]} 71... Kxe5 {[%clk 0:00:05.9]} 72. Kd8 {[%clk 0:00:04.3]}
72... Kd6 {[%clk 0:00:06.2]} 73. c8=Q {[%clk 0:00:04.3]} 73... Bxc8 {[%clk
0:00:06.8]} 1/2-1/2

[Event "*** Titled Tuesday Blitz"]
[Site "Chess.com"]
[Date "2021.04.20"]
[Round "11"]
[White "Sadykov_Ramil"]
[Black "yuki_chess123"]
[Result "0-1"]
[WhiteElo "2477"]
[BlackElo "2289"]
[TimeControl "180+1"]
[EndTime "12:07:33 PDT"]
[Termination "yuki_chess123 won on time"]

1. d4 {[%clk 0:03:00.9]} 1... Nf6 {[%clk 0:02:59]} 2. Bf4 {[%clk 0:02:59.3]}
2... c6 {[%clk 0:02:56.9]} 3. Nc3 {[%clk 0:02:54.1]} 3... d5 {[%clk 0:02:55.9]}
4. e3 {[%clk 0:02:52.4]} 4... Qb6 {[%clk 0:02:43.5]} 5. Rb1 {[%clk 0:02:25.8]}
5... Bg4 {[%clk 0:02:37.7]} 6. f3 {[%clk 0:02:20.2]} 6... Bh5 {[%clk 0:02:37]}
7. g4 {[%clk 0:01:56.6]} 7... Bg6 {[%clk 0:02:36.5]} 8. h4 {[%clk 0:01:56.8]}
8... h5 {[%clk 0:02:26.6]} 9. g5 {[%clk 0:01:55.3]} 9... Nfd7 {[%clk 0:02:26.1]}
10. Bd3 {[%clk 0:01:48]} 10... Bxd3 {[%clk 0:02:18.6]} 11. Qxd3 {[%clk 0:01:31]}
11... g6 {[%clk 0:02:18.4]} 12. Bxb8 {[%clk 0:01:25.2]} 12... Rxb8 {[%clk
0:02:07.5]} 13. f4 {[%clk 0:01:25.6]} 13... e6 {[%clk 0:02:02.1]} 14. Nf3 {[%clk
0:01:22.2]} 14... c5 {[%clk 0:01:53.6]} 15. Kf2 {[%clk 0:01:14.9]} 15... cxd4
{[%clk 0:01:50.3]} 16. exd4 {[%clk 0:01:13.6]} 16... Bd6 {[%clk 0:01:47.2]} 17.
Ne2 {[%clk 0:01:11.7]} 17... O-O {[%clk 0:01:41.3]} 18. c3 {[%clk 0:01:10]}
18... Rbc8 {[%clk 0:01:22.4]} 19. Qe3 {[%clk 0:01:02.8]} 19... Qa6 {[%clk
0:01:15.5]} 20. a3 {[%clk 0:00:59.3]} 20... Nb6 {[%clk 0:01:13.5]} 21. Ne5
{[%clk 0:00:54.2]} 21... Nc4 {[%clk 0:01:11]} 22. Nxc4 {[%clk 0:00:46.8]} 22...
dxc4 {[%clk 0:01:07.1]} 23. Ng3 {[%clk 0:00:39.2]} 23... Qc6 {[%clk 0:00:58.1]}
24. Ne4 {[%clk 0:00:38.3]} 24... Be7 {[%clk 0:00:54.9]} 25. Rhe1 {[%clk
0:00:35.1]} 25... Rfd8 {[%clk 0:00:54.6]} 26. Rbd1 {[%clk 0:00:34.1]} 26... Rd5
{[%clk 0:00:54.5]} 27. Kg3 {[%clk 0:00:34]} 27... Rf5 {[%clk 0:00:54.3]} 28. Nd2
{[%clk 0:00:33.5]} 28... Bd6 {[%clk 0:00:53.5]} 29. Rf1 {[%clk 0:00:33.5]} 29...
Qc7 {[%clk 0:00:53.2]} 30. Ne4 {[%clk 0:00:30.2]} 30... Rd8 {[%clk 0:00:46.1]}
31. Rf3 {[%clk 0:00:27.5]} 31... Be7 {[%clk 0:00:39.9]} 32. Rdf1 {[%clk
0:00:27.2]} 32... Rdd5 {[%clk 0:00:38.9]} 33. Kg2 {[%clk 0:00:27.1]} 33... Kg7
{[%clk 0:00:37.2]} 34. Ng3 {[%clk 0:00:27.2]} 34... Bd6 {[%clk 0:00:34.5]} 35.
Nxf5+ {[%clk 0:00:22.9]} 35... Rxf5 {[%clk 0:00:34.5]} 36. Qe4 {[%clk 0:00:23]}
36... Rd5 {[%clk 0:00:29.6]} 37. f5 {[%clk 0:00:16.2]} 37... gxf5 {[%clk
0:00:25.3]} 38. Qe2 {[%clk 0:00:15.8]} 38... Kg6 {[%clk 0:00:24.3]} 39. Re3
{[%clk 0:00:14.2]} 39... Qd7 {[%clk 0:00:22.5]} 40. Qf3 {[%clk 0:00:13.9]} 40...
Bb8 {[%clk 0:00:20.7]} 41. Rf2 {[%clk 0:00:11.5]} 41... Qd6 {[%clk 0:00:21]} 42.
Kh1 {[%clk 0:00:10.8]} 42... b5 {[%clk 0:00:19.3]} 43. Re1 {[%clk 0:00:09.4]}
43... a6 {[%clk 0:00:19.2]} 44. Rg1 {[%clk 0:00:09.4]} 44... Bc7 {[%clk
0:00:19.1]} 45. Rgf1 {[%clk 0:00:09.5]} 45... Bb8 {[%clk 0:00:19.2]} 46. Qh3
{[%clk 0:00:09.4]} 46... Bc7 {[%clk 0:00:19.2]} 47. Re2 {[%clk 0:00:09.7]} 47...
Bb8 {[%clk 0:00:19.4]} 48. Rfe1 {[%clk 0:00:09.9]} 48... Qc6 {[%clk 0:00:18.5]}
49. Kg1 {[%clk 0:00:09.9]} 49... Qd6 {[%clk 0:00:18.1]} 50. Qf3 {[%clk
0:00:09.1]} 50... Bc7 {[%clk 0:00:17.9]} 51. Re5 {[%clk 0:00:09.1]} 51... Rxe5
{[%clk 0:00:16.4]} 52. Rxe5 {[%clk 0:00:10]} 52... Qd7 {[%clk 0:00:16.2]} 53.
Re2 {[%clk 0:00:09.8]} 53... Qd6 {[%clk 0:00:16.7]} 54. Kf1 {[%clk 0:00:09]}
54... Qd7 {[%clk 0:00:15.5]} 55. d5 {[%clk 0:00:07.4]} 55... exd5 {[%clk
0:00:12.8]} 56. Kg2 {[%clk 0:00:06]} 56... Qd6 {[%clk 0:00:12.9]} 57. Kf1 {[%clk
0:00:05.4]} 57... f4 {[%clk 0:00:11.6]} 58. Rd2 {[%clk 0:00:05.4]} 58... Qe5
{[%clk 0:00:10.5]} 59. Qxd5 {[%clk 0:00:03.6]} 59... Qe3 {[%clk 0:00:09.6]} 60.
Re2 {[%clk 0:00:02.9]} 60... Qh3+ {[%clk 0:00:09]} 61. Ke1 {[%clk 0:00:03]}
61... f3 {[%clk 0:00:08.7]} 62. Rf2 {[%clk 0:00:02.1]} 62... Bg3 {[%clk
0:00:07.9]} 63. Qe4+ {[%clk 0:00:01.9]} 63... Kg7 {[%clk 0:00:07.2]} 64. Qd4+
{[%clk 0:00:01.8]} 64... Kh7 {[%clk 0:00:07]} 65. Qe4+ {[%clk 0:00:02]} 65...
Kg7 {[%clk 0:00:07.3]} 66. Qd4+ {[%clk 0:00:02.4]} 66... Kg8 {[%clk 0:00:07.7]}
67. Qd8+ {[%clk 0:00:02.4]} 67... Kg7 {[%clk 0:00:08.2]} 68. Qf6+ {[%clk
0:00:02.6]} 68... Kg8 {[%clk 0:00:08.5]} 69. Qd8+ {[%clk 0:00:02.6]} 69... Kh7
{[%clk 0:00:07.9]} 70. Qf6 {[%clk 0:00:01.2]} 70... Qh1+ {[%clk 0:00:07.5]} 71.
Kd2 {[%clk 0:00:01.2]} 71... Bxf2 {[%clk 0:00:07.4]} 0-1

[Event "*** Titled Tuesday Blitz"]
[Site "Chess.com"]
[Date "2021.04.20"]
[Round "11"]
[White "c_r_e_e_p_e_r"]
[Black "Anna_ChessMate"]
[Result "1/2-1/2"]
[WhiteElo "2401"]
[BlackElo "2578"]
[TimeControl "180+1"]
[EndTime "12:07:34 PDT"]
[Termination "Game drawn by repetition"]

1. e4 {[%clk 0:03:00.9]} 1... c6 {[%clk 0:02:58.6]} 2. d4 {[%clk 0:02:55.9]}
2... d5 {[%clk 0:02:59.5]} 3. exd5 {[%clk 0:02:56.3]} 3... cxd5 {[%clk
0:03:00.4]} 4. c4 {[%clk 0:02:57]} 4... Nf6 {[%clk 0:03:00.6]} 5. Nc3 {[%clk
0:02:57]} 5... Nc6 {[%clk 0:03:01.2]} 6. Nf3 {[%clk 0:02:54.9]} 6... Bg4 {[%clk
0:03:01.3]} 7. cxd5 {[%clk 0:02:53]} 7... Nxd5 {[%clk 0:03:02.2]} 8. Qb3 {[%clk
0:02:52.9]} 8... Bxf3 {[%clk 0:03:02.8]} 9. gxf3 {[%clk 0:02:50.7]} 9... Nb6
{[%clk 0:03:03.4]} 10. Be3 {[%clk 0:02:49]} 10... e6 {[%clk 0:03:03.1]} 11.
O-O-O {[%clk 0:02:46.6]} 11... Be7 {[%clk 0:02:59.9]} 12. Kb1 {[%clk 0:02:45.1]}
12... O-O {[%clk 0:03:00.3]} 13. Rg1 {[%clk 0:02:42.3]} 13... Nb4 {[%clk
0:03:00.4]} 14. Ne4 {[%clk 0:02:34.4]} 14... Re8 {[%clk 0:02:54.7]} 15. Bb5
{[%clk 0:02:19.7]} 15... Nd7 {[%clk 0:02:53.9]} 16. Nc5 {[%clk 0:02:16.8]} 16...
Bxc5 {[%clk 0:02:41.8]} 17. dxc5 {[%clk 0:02:01.9]} 17... Nd5 {[%clk 0:02:41.2]}
18. Bd4 {[%clk 0:01:50.3]} 18... g6 {[%clk 0:02:35.3]} 19. Qd3 {[%clk
0:01:26.6]} 19... a6 {[%clk 0:02:21.4]} 20. Ba4 {[%clk 0:01:26.4]} 20... Qe7
{[%clk 0:02:16.6]} 21. f4 {[%clk 0:01:13.5]} 21... Red8 {[%clk 0:02:14]} 22. Rc1
{[%clk 0:01:06.8]} 22... Nxf4 {[%clk 0:02:08.9]} 23. Qe4 {[%clk 0:01:06.4]}
23... Nh5 {[%clk 0:01:42.9]} 24. Rcd1 {[%clk 0:00:40.7]} 24... Ndf6 {[%clk
0:01:25.7]} 25. Qe3 {[%clk 0:00:27.4]} 25... Rd5 {[%clk 0:01:07.2]} 26. Bb3
{[%clk 0:00:27.5]} 26... Rf5 {[%clk 0:01:03.8]} 27. Bc2 {[%clk 0:00:27.2]} 27...
Rd5 {[%clk 0:00:57.6]} 28. Rg5 {[%clk 0:00:25.2]} 28... Rad8 {[%clk 0:00:51.2]}
29. Rxd5 {[%clk 0:00:25.3]} 29... Rxd5 {[%clk 0:00:37.7]} 30. Bb3 {[%clk
0:00:25.6]} 30... Rd8 {[%clk 0:00:36.5]} 31. Re1 {[%clk 0:00:22.9]} 31... Qd7
{[%clk 0:00:32.6]} 32. Rd1 {[%clk 0:00:16.9]} 32... Qc6 {[%clk 0:00:32.7]} 33.
f3 {[%clk 0:00:14.9]} 33... Qc7 {[%clk 0:00:29]} 34. Bc2 {[%clk 0:00:12.8]}
34... Qxh2 {[%clk 0:00:26.5]} 35. Rd2 {[%clk 0:00:12.9]} 35... Qh1+ {[%clk
0:00:23.1]} 36. Rd1 {[%clk 0:00:12.9]} 36... Qh2 {[%clk 0:00:23.2]} 37. a3
{[%clk 0:00:10.7]} 37... Qh4 {[%clk 0:00:15.6]} 38. Ka2 {[%clk 0:00:10.4]} 38...
Nd5 {[%clk 0:00:11.8]} 39. Qe5 {[%clk 0:00:09.5]} 39... Qf6 {[%clk 0:00:11.8]}
40. Qe4 {[%clk 0:00:06.8]} 40... Qf5 {[%clk 0:00:10.3]} 41. Qe2 {[%clk
0:00:05.3]} 41... Qf4 {[%clk 0:00:08.9]} 42. Be4 {[%clk 0:00:05.7]} 42... Ng3
{[%clk 0:00:07.6]} 43. Qg2 {[%clk 0:00:05.9]} 43... Nxe4 {[%clk 0:00:07.3]} 44.
fxe4 {[%clk 0:00:06.8]} 44... Ne7 {[%clk 0:00:04.1]} 45. Be5 {[%clk 0:00:06.7]}
45... Qxe5 {[%clk 0:00:04.4]} 46. Rxd8+ {[%clk 0:00:07]} 46... Kg7 {[%clk
0:00:05.3]} 47. Qc2 {[%clk 0:00:07.2]} 47... Nc6 {[%clk 0:00:04.7]} 48. Rd7
{[%clk 0:00:07.1]} 48... h5 {[%clk 0:00:03.6]} 49. Rxb7 {[%clk 0:00:06.6]} 49...
h4 {[%clk 0:00:04.2]} 50. Qf2 {[%clk 0:00:06.3]} 50... Qf6 {[%clk 0:00:03.8]}
51. Qxf6+ {[%clk 0:00:04.7]} 51... Kxf6 {[%clk 0:00:04.7]} 52. Rb6 {[%clk
0:00:04.6]} 52... Ne5 {[%clk 0:00:03.9]} 53. c6 {[%clk 0:00:04.2]} 53... h3
{[%clk 0:00:04.8]} 54. Rb3 {[%clk 0:00:04.3]} 54... Nxc6 {[%clk 0:00:04.2]} 55.
Rxh3 {[%clk 0:00:04.6]} 55... g5 {[%clk 0:00:04.8]} 56. b4 {[%clk 0:00:04.6]}
56... g4 {[%clk 0:00:04.9]} 57. Rh1 {[%clk 0:00:04.9]} 57... Ke5 {[%clk
0:00:05]} 58. Kb3 {[%clk 0:00:03.9]} 58... g3 {[%clk 0:00:04.3]} 59. a4 {[%clk
0:00:04]} 59... Kf4 {[%clk 0:00:03.6]} 60. b5 {[%clk 0:00:04.2]} 60... axb5
{[%clk 0:00:03.7]} 61. axb5 {[%clk 0:00:05.1]} 61... Ne5 {[%clk 0:00:03.8]} 62.
b6 {[%clk 0:00:05.1]} 62... g2 {[%clk 0:00:04.3]} 63. Rg1 {[%clk 0:00:04.6]}
63... Kf3 {[%clk 0:00:04.6]} 64. b7 {[%clk 0:00:04.5]} 64... Nd7 {[%clk
0:00:04.7]} 65. Rd1 {[%clk 0:00:04.4]} 65... Nb8 {[%clk 0:00:04.1]} 66. Kc4
{[%clk 0:00:04.2]} 66... Ke2 {[%clk 0:00:03.7]} 67. Rb1 {[%clk 0:00:03.7]} 67...
Kf2 {[%clk 0:00:03.8]} 68. Kc5 {[%clk 0:00:04]} 68... g1=Q {[%clk 0:00:03.9]}
69. Rxg1 {[%clk 0:00:04.2]} 69... Kxg1 {[%clk 0:00:04.8]} 70. Kb6 {[%clk
0:00:04.6]} 70... f5 {[%clk 0:00:05.1]} 71. exf5 {[%clk 0:00:04.1]} 71... exf5
{[%clk 0:00:06]} 72. Kc7 {[%clk 0:00:03.4]} 72... Na6+ {[%clk 0:00:06.4]} 73.
Kb6 {[%clk 0:00:03.9]} 73... Nb8 {[%clk 0:00:06.4]} 74. Kc7 {[%clk 0:00:03.7]}
74... Na6+ {[%clk 0:00:06.6]} 75. Kb6 {[%clk 0:00:04.1]} 75... Nb8 {[%clk
0:00:06.7]} 1/2-1/2

[Event "*** Titled Tuesday Blitz"]
[Site "Chess.com"]
[Date "2021.04.20"]
[Round "11"]
[White "enriquetejedor"]
[Black "Piotrek1979"]
[Result "1/2-1/2"]
[WhiteElo "2599"]
[BlackElo "2416"]
[TimeControl "180+1"]
[EndTime "12:07:46 PDT"]
[Termination "Game drawn by repetition"]

1. b4 {[%clk 0:02:52.9]} 1... d5 {[%clk 0:02:57.7]} 2. Bb2 {[%clk 0:02:51.2]}
2... Nf6 {[%clk 0:02:58.1]} 3. e3 {[%clk 0:02:44.6]} 3... Bf5 {[%clk 0:02:58.3]}
4. h3 {[%clk 0:02:42.3]} 4... e6 {[%clk 0:02:58.1]} 5. g4 {[%clk 0:02:42.6]}
5... Be4 {[%clk 0:02:56.6]} 6. f3 {[%clk 0:02:42.3]} 6... Bg6 {[%clk 0:02:28]}
7. h4 {[%clk 0:02:42.1]} 7... h5 {[%clk 0:02:24.4]} 8. g5 {[%clk 0:02:41.5]}
8... Nfd7 {[%clk 0:02:22.9]} 9. a3 {[%clk 0:02:39]} 9... e5 {[%clk 0:02:01.3]}
10. c4 {[%clk 0:02:38.4]} 10... c6 {[%clk 0:01:55]} 11. cxd5 {[%clk 0:02:37.2]}
11... cxd5 {[%clk 0:01:54.1]} 12. Nc3 {[%clk 0:02:37.9]} 12... Nb6 {[%clk
0:01:33.9]} 13. Bb5+ {[%clk 0:02:28.3]} 13... Nc6 {[%clk 0:01:32.2]} 14. Nge2
{[%clk 0:02:26.5]} 14... Bd6 {[%clk 0:01:13.5]} 15. Qb3 {[%clk 0:02:21.6]} 15...
a6 {[%clk 0:00:56.9]} 16. Bxc6+ {[%clk 0:02:12.5]} 16... bxc6 {[%clk 0:00:57.8]}
17. e4 {[%clk 0:02:13.4]} 17... O-O {[%clk 0:00:51.6]} 18. d3 {[%clk 0:02:12.4]}
18... a5 {[%clk 0:00:42.2]} 19. O-O {[%clk 0:02:02.8]} 19... Qd7 {[%clk
0:00:21.1]} 20. Kg2 {[%clk 0:01:56.5]} 20... a4 {[%clk 0:00:20.4]} 21. Qc2
{[%clk 0:01:56.1]} 21... f6 {[%clk 0:00:19.9]} 22. Bc1 {[%clk 0:01:53.4]} 22...
fxg5 {[%clk 0:00:19.5]} 23. Bxg5 {[%clk 0:01:54.3]} 23... Be7 {[%clk 0:00:18.5]}
24. Qd2 {[%clk 0:01:54.1]} 24... dxe4 {[%clk 0:00:18]} 25. dxe4 {[%clk
0:01:53.8]} 25... Qxd2 {[%clk 0:00:17.7]} 26. Bxd2 {[%clk 0:01:53.8]} 26... Nc4
{[%clk 0:00:18.6]} 27. Bg5 {[%clk 0:01:53.5]} 27... Bxg5 {[%clk 0:00:18.6]} 28.
hxg5 {[%clk 0:01:54.4]} 28... Ne3+ {[%clk 0:00:19]} 29. Kf2 {[%clk 0:01:54.1]}
29... Nxf1 {[%clk 0:00:19.9]} 30. Rxf1 {[%clk 0:01:54.2]} 30... Rfd8 {[%clk
0:00:20.8]} 31. Ke3 {[%clk 0:01:53.9]} 31... Bf7 {[%clk 0:00:20.2]} 32. f4
{[%clk 0:01:53.7]} 32... Bc4 {[%clk 0:00:20.5]} 33. f5 {[%clk 0:01:53.8]} 33...
Rd3+ {[%clk 0:00:21]} 34. Kf2 {[%clk 0:01:54.2]} 34... h4 {[%clk 0:00:20.8]} 35.
Rh1 {[%clk 0:01:53.2]} 35... Rd2 {[%clk 0:00:21.1]} 36. Rxh4 {[%clk 0:01:51.9]}
36... Bxe2 {[%clk 0:00:21.6]} 37. Nxe2 {[%clk 0:01:52.3]} 37... Rad8 {[%clk
0:00:21.8]} 38. Rh1 {[%clk 0:01:36.9]} 38... R8d3 {[%clk 0:00:20.9]} 39. Rc1
{[%clk 0:01:32.8]} 39... Rxa3 {[%clk 0:00:20.5]} 40. Rxc6 {[%clk 0:00:58]} 40...
Raa2 {[%clk 0:00:19.1]} 41. Kf3 {[%clk 0:00:55]} 41... Rxe2 {[%clk 0:00:19.2]}
42. Kg4 {[%clk 0:00:52.2]} 42... Kf8 {[%clk 0:00:18.5]} 43. Kh5 {[%clk
0:00:46.7]} 43... Rxe4 {[%clk 0:00:17.9]} 44. Rc8+ {[%clk 0:00:42.4]} 44... Ke7
{[%clk 0:00:17.4]} 45. Rc7+ {[%clk 0:00:40.6]} 45... Kd6 {[%clk 0:00:17.3]} 46.
Rxg7 {[%clk 0:00:41]} 46... Rh2+ {[%clk 0:00:17.1]} 47. Kg6 {[%clk 0:00:41]}
47... a3 {[%clk 0:00:18]} 48. Ra7 {[%clk 0:00:37]} 48... a2 {[%clk 0:00:18.2]}
49. Ra6+ {[%clk 0:00:35]} 49... Kd5 {[%clk 0:00:17.2]} 50. Ra5+ {[%clk
0:00:34.9]} 50... Kc4 {[%clk 0:00:17.4]} 51. f6 {[%clk 0:00:31.6]} 51... Kxb4
{[%clk 0:00:17]} 52. Ra8 {[%clk 0:00:28.7]} 52... Rf4 {[%clk 0:00:16.8]} 53. Kg7
{[%clk 0:00:21.1]} 53... e4 {[%clk 0:00:16.9]} 54. g6 {[%clk 0:00:13.5]} 54...
e3 {[%clk 0:00:16.7]} 55. f7 {[%clk 0:00:07]} 55... e2 {[%clk 0:00:16.5]} 56.
Rxa2 {[%clk 0:00:07.4]} 56... e1=Q {[%clk 0:00:16.1]} 57. Rxh2 {[%clk
0:00:07.5]} 57... Qe5+ {[%clk 0:00:16.5]} 58. Kh7 {[%clk 0:00:07.7]} 58... Rxf7+
{[%clk 0:00:14.8]} 59. gxf7 {[%clk 0:00:07.7]} 59... Qxh2+ {[%clk 0:00:15.7]}
60. Kg7 {[%clk 0:00:07.2]} 60... Qe5+ {[%clk 0:00:14.4]} 61. Kg8 {[%clk
0:00:06]} 61... Qg5+ {[%clk 0:00:14.1]} 62. Kh7 {[%clk 0:00:05.1]} 62... Qf6
{[%clk 0:00:14.3]} 63. Kg8 {[%clk 0:00:05.3]} 63... Qg6+ {[%clk 0:00:14.4]} 64.
Kh8 {[%clk 0:00:05.4]} 64... Qh5+ {[%clk 0:00:15.3]} 65. Kg7 {[%clk 0:00:05.3]}
65... Qg5+ {[%clk 0:00:14.8]} 66. Kh8 {[%clk 0:00:04.5]} 66... Qe5+ {[%clk
0:00:14.9]} 67. Kg8 {[%clk 0:00:03.1]} 67... Qe6 {[%clk 0:00:15]} 68. Kh8 {[%clk
0:00:02.5]} 68... Qe7 {[%clk 0:00:13.4]} 69. Kg8 {[%clk 0:00:02.6]} 69... Qg5+
{[%clk 0:00:13.4]} 70. Kh7 {[%clk 0:00:02.8]} 70... Qe7 {[%clk 0:00:11]} 71. Kg8
{[%clk 0:00:03]} 71... Qe6 {[%clk 0:00:11.3]} 72. Kg7 {[%clk 0:00:03]} 72... Qd7
{[%clk 0:00:10.1]} 73. Kg8 {[%clk 0:00:02.7]} 73... Qd5 {[%clk 0:00:10.3]} 74.
Kg7 {[%clk 0:00:02.6]} 74... Qg5+ {[%clk 0:00:10.5]} 75. Kh8 {[%clk 0:00:02.8]}
75... Qh6+ {[%clk 0:00:08.8]} 76. Kg8 {[%clk 0:00:03]} 76... Qg6+ {[%clk
0:00:09]} 77. Kh8 {[%clk 0:00:03.1]} 77... Qd6 {[%clk 0:00:06.4]} 78. Kg7 {[%clk
0:00:03]} 78... Qe7 {[%clk 0:00:06.4]} 79. Kg8 {[%clk 0:00:03]} 1/2-1/2